bitfinex/quotes_BTCUSD_20220105
["timestamp","ask_amount","ask_price","bid_price","bid_amount"]
[1641416526455,0.0311647,44125.0,44120.0,0.001]
[1641416526655,0.00120858,44132.0,44120.0,0.001]
[1641416526905,0.0311647,44124.0,44123.0,0.26738987]
[1641416527105,0.0311647,44124.0,44123.0,0.63553987]
[1641416527706,0.0311647,44124.0,44123.0,0.36815]
[1641416527908,0.0311647,44132.0,44123.0,0.69036311]
[1641416528106,0.5927,44151.0,44125.0,0.113303]
[1641416528107,0.0311647,44134.0,44125.0,0.113303]
[1641416528307,0.0311647,44134.0,44126.0,0.64069182]
[1641416528506,0.0311647,44134.0,44126.0,0.69069182]
[1641416528706,0.0311647,44134.0,44132.0,0.29198642]
[1641416528912,0.0311647,44134.0,44133.0,0.36815]
[1641416529408,0.0311647,44134.0,44133.0,0.36315]
[1641416530214,0.9121,44150.0,44133.0,0.83560161]
[1641416530410,0.00124708,44152.0,44136.0,0.05664019]
[1641416530659,0.00124708,44152.0,44137.0,0.27684818]
[1641416530855,0.0311647,44138.0,44137.0,0.27684818]
[1641416531155,0.0311647,44138.0,44137.0,1.33389847]
[1641416531350,0.0311647,44138.0,44137.0,1.28389847]
[1641416531556,0.0311647,44138.0,44137.0,1.43389847]
[1641416531951,0.0311647,44138.0,44137.0,0.518055]
[1641416532352,0.0311647,44138.0,44137.0,0.370055]
[1641416532353,2.3211647,44138.0,44137.0,0.370055]
[1641416532555,2.3551257,44138.0,44137.0,0.002]
[1641416532755,2.35634486,44138.0,44137.0,0.002]
[1641416532952,0.03238386,44138.0,44137.0,0.002]
[1641416533153,0.00120589,44139.0,44137.0,0.370055]
[1641416533354,0.0261647,44138.0,44137.0,0.002]
[1641416533656,0.0261647,44138.0,44137.0,0.368055]
[1641416534298,0.0261647,44138.0,44133.0,0.29075483]
[1641416534499,0.00128437,44147.0,44137.0,0.001]
[1641416534700,0.6261647,44138.0,44137.0,0.001]
[1641416535299,0.0261647,44138.0,44137.0,0.001]
[1641416535499,0.6161647,44138.0,44137.0,0.001]
[1641416535699,0.6161647,44138.0,44133.0,0.29075483]
[1641416536499,1.20241191,44138.0,44133.0,0.29175483]
[1641416537102,1.20241191,44138.0,44133.0,0.001]
[1641416537103,2.3161647,44134.0,44133.0,0.001]
[1641416537303,2.40800437,44134.0,44133.0,0.001]
[1641416537701,0.001227,44132.0,44117.0,1.79456726]
[1641416537902,0.0261647,44118.0,44117.0,1.78076726]
[1641416538159,0.76385588,44118.0,44104.0,1.78076726]
[1641416538351,0.056692,44113.0,44104.0,1.78076726]
[1641416538553,0.38238856,44105.0,44104.0,1.78076726]
[1641416538752,0.02238856,44105.0,44104.0,2.14882226]
[1641416539050,0.00128374,44112.0,44104.0,0.99502754]
[1641416539254,0.00128374,44112.0,44105.0,0.368055]
[1641416539450,0.02238856,44106.0,44105.0,0.368055]
[1641416539651,0.02238856,44109.0,44105.0,0.8488059]
[1641416539949,0.01362528,44115.0,44107.0,0.05667981]
[1641416540156,0.01362528,44115.0,44111.0,0.368055]
[1641416540354,0.00128796,44129.0,44114.0,0.368055]
[1641416540550,0.02238856,44124.0,44123.0,0.44110192]
[1641416540752,0.02238856,44124.0,44123.0,0.80915692]
[1641416541353,0.92238856,44124.0,44123.0,0.368055]
[1641416541652,0.92238856,44124.0,44114.0,0.11334]
[1641416541921,0.92238856,44124.0,44112.0,0.0426]
[1641416541922,0.02238856,44115.0,44112.0,0.0426]
[1641416542318,0.64693862,44114.0,44112.0,0.0426]
[1641416542515,0.64693862,44114.0,44112.0,0.0476]
[1641416542516,1.763961,44113.0,44112.0,0.0476]
[1641416543014,1.73,44113.0,44112.0,0.0476]
[1641416543615,0.02364463,44115.0,44112.0,0.0426]
[1641416543817,0.02238856,44115.0,44112.0,0.0426]
[1641416544115,0.02238856,44115.0,44112.0,0.04384838]
[1641416544419,0.02238856,44115.0,44112.0,0.04484838]
[1641416544814,0.02359608,44115.0,44112.0,0.04484838]
[1641416545014,0.02359608,44115.0,44112.0,0.27484838]
[1641416545649,0.02359608,44115.0,44112.0,0.27384838]
[1641416546452,0.28172508,44115.0,44112.0,0.27484838]
[1641416546652,0.03524547,44114.0,44112.0,0.27484838]
[1641416546852,0.00121178,44113.0,44112.0,0.23224838]
[1641416547058,2.32517278,44113.0,44112.0,0.23224838]
[1641416547250,2.99004699,44113.0,44112.0,0.23224838]
[1641416547651,2.99004699,44113.0,44112.0,0.23124838]
[1641416548050,3.34004699,44113.0,44112.0,0.23124838]
[1641416548251,3.34004699,44113.0,44101.0,0.42410977]
[1641416548252,0.0567022,44108.0,44101.0,0.42410977]
[1641416548453,2.99004699,44113.0,44101.0,0.65719862]
[1641416548454,0.02238856,44102.0,44101.0,0.65719862]
[1641416548655,0.01738856,44103.0,44101.0,0.65719862]
[1641416549301,0.01738856,44106.0,44101.0,1.93929045]
[1641416549503,0.01738856,44106.0,44104.0,0.28650257]
[1641416549703,0.01738856,44106.0,44105.0,0.368055]
[1641416549900,0.01859628,44106.0,44105.0,0.368055]
[1641416550399,0.01859628,44106.0,44105.0,0.370055]
[1641416551001,0.00120772,44106.0,44105.0,0.370055]
[1641416551400,0.00120772,44106.0,44105.0,1.80206152]
[1641416551602,0.01859628,44106.0,44105.0,1.85006152]
[1641416552400,0.01859628,44106.0,44105.0,1.85206152]
[1641416553646,0.01859628,44106.0,44105.0,1.85006152]
[1641416554445,0.01859628,44106.0,44105.0,1.85206152]
[1641416555446,0.01859628,44106.0,44105.0,1.65206152]
[1641416555648,0.01859628,44106.0,44105.0,1.65006152]
[1641416556451,0.01859628,44106.0,44105.0,1.65206152]
[1641416556796,0.01859628,44106.0,44105.0,1.75206152]
[1641416556997,0.01859628,44106.0,44105.0,1.85206152]
[1641416557202,0.01357992,44116.0,44105.0,2.86206152]
[1641416557415,0.01357992,44116.0,44114.0,0.00122033]
[1641416557698,0.01357992,44116.0,44115.0,3.27301917]
[1641416557899,0.0025,44121.0,44116.0,0.31]
[1641416558098,0.0025,44121.0,44120.0,1.338055]
[1641416558298,0.0025,44121.0,44120.0,2.11234864]
[1641416558500,0.0025,44121.0,44120.0,2.30548589]
[1641416558697,0.5521,44145.0,44121.0,1.79]
[1641416558698,0.01738856,44128.0,44121.0,1.79]
[1641416558901,0.5521,44145.0,44126.0,0.00124984]
[1641416559301,0.23411188,44138.0,44133.0,0.05665]
[1641416559505,1.60738856,44134.0,44130.0,0.113289]
[1641416559701,1.60738856,44134.0,44126.0,0.113318]
[1641416559904,0.00129165,44131.0,44126.0,0.113318]
[1641416560300,0.01738856,44127.0,44126.0,0.113318]
[1641416560568,0.01738856,44127.0,44126.0,0.115318]
[1641416560758,0.01738856,44127.0,44126.0,0.51020742]
[1641416560958,0.01738856,44127.0,44126.0,0.87826242]
[1641416561158,0.94738856,44127.0,44126.0,0.93492142]
[1641416561360,0.94738856,44127.0,44126.0,0.115318]
[1641416561762,0.94738856,44127.0,44119.0,0.056674]
[1641416561763,0.98134956,44127.0,44119.0,0.056674]
[1641416561965,0.033961,44126.0,44106.0,0.27789982]
[1641416562165,0.01738856,44114.0,44112.0,0.113351]
[1641416562362,0.01738856,44114.0,44113.0,1.31727319]
[1641416562566,0.01738856,44114.0,44113.0,1.55909821]
[1641416562762,0.01738856,44114.0,44113.0,1.0194742]
[1641416562961,0.01738856,44114.0,44113.0,0.9628002]
[1641416563863,0.01738856,44114.0,44113.0,1.0194752]
[1641416564501,0.01738856,44114.0,44113.0,1.0224752]
[1641416565103,0.56738856,44114.0,44113.0,0.72623202]
[1641416565301,0.56738856,44114.0,44113.0,0.371055]
[1641416565501,0.56738856,44114.0,44113.0,0.003]
[1641416565803,0.56738856,44114.0,44112.0,0.113351]
[1641416566501,0.56738856,44114.0,44112.0,0.115351]
[1641416566902,0.56738856,44114.0,44112.0,0.002]
[1641416567706,0.56738856,44114.0,44108.0,0.31245455]
[1641416567902,0.55,44114.0,44109.0,0.368055]
[1641416568151,0.55,44114.0,44111.0,0.056683]
[1641416568549,0.01738856,44112.0,44111.0,0.056683]
[1641416568749,0.01738856,44112.0,44111.0,0.424738]
[1641416568949,0.69738856,44112.0,44111.0,0.424738]
[1641416569151,0.69738856,44112.0,44111.0,0.056683]
[1641416570260,0.01738856,44112.0,44109.0,0.113362]
[1641416570452,0.01738856,44112.0,44111.0,0.642]
[1641416570652,0.01738856,44112.0,44111.0,0.370055]
[1641416571053,0.00120143,44122.0,44111.0,0.950055]
[1641416571054,0.01738856,44117.0,44111.0,0.950055]
[1641416571253,0.01738856,44117.0,44113.0,0.37354563]
[1641416571460,0.01738856,44117.0,44115.0,0.25464104]
[1641416571654,0.00124425,44128.0,44120.0,0.33723303]
[1641416571904,1.63738856,44121.0,44120.0,0.33723303]
[1641416572105,1.67134956,44121.0,44115.0,0.25464104]
[1641416572304,0.84738856,44116.0,44115.0,0.25464104]
[1641416572503,0.84738856,44116.0,44115.0,0.05667]
[1641416573506,0.01738856,44116.0,44115.0,0.05667]
[1641416573906,0.00124425,44128.0,44115.0,0.05667]
[1641416574107,0.00124425,44128.0,44120.0,0.05667]
[1641416574307,0.00124425,44128.0,44119.0,0.40547656]
[1641416574308,0.033961,44126.0,44119.0,0.170009]
[1641416574706,0.033961,44126.0,44120.0,0.47783608]
[1641416574907,0.033961,44126.0,44119.0,0.170009]
[1641416575411,0.033961,44126.0,44122.0,0.43003334]
[1641416576153,0.033961,44126.0,44123.0,0.05667]
[1641416576852,0.00124425,44128.0,44123.0,0.05667]
[1641416577054,0.033961,44126.0,44123.0,0.05667]
[1641416577254,0.00124425,44128.0,44123.0,0.05667]
[1641416577656,0.00124425,44128.0,44122.0,0.001]
[1641416577857,0.033961,44126.0,44120.0,0.056673]
[1641416578655,0.033961,44126.0,44120.0,0.057673]
[1641416579307,0.00124425,44128.0,44125.0,0.33656112]
[1641416579510,0.00126342,44136.0,44125.0,0.33656112]
[1641416579709,0.033961,44133.0,44125.0,0.33656112]
[1641416580110,0.033961,44133.0,44125.0,0.67955619]
[1641416580311,0.24556637,44131.0,44126.0,0.113323]
[1641416580511,0.033961,44130.0,44126.0,0.113323]
[1641416580817,0.033961,44130.0,44125.0,0.001]
[1641416580818,0.0352013,44130.0,44125.0,0.001]
[1641416582011,0.0352013,44130.0,44117.0,0.91443943]
[1641416582312,0.0012403,44130.0,44124.0,0.42295147]
[1641416582512,0.0012403,44130.0,44124.0,0.47961847]
[1641416582711,0.0012403,44130.0,44124.0,0.42295147]
[1641416583751,0.0012403,44130.0,44124.0,0.72865094]
[1641416583951,1.22606783,44140.0,44125.0,0.368055]
[1641416583952,0.9994,44140.0,44125.0,0.368055]
[1641416584154,0.5745619,44147.0,44135.0,0.056649]
[1641416584352,0.27160174,44146.0,44135.0,0.056649]
[1641416584552,0.033961,44146.0,44135.0,0.056649]
[1641416584751,0.48555332,44143.0,44138.0,0.25630408]
[1641416584951,0.48555332,44143.0,44139.0,0.056646]
[1641416585355,0.48555332,44143.0,44139.0,0.113292]
[1641416585750,0.033961,44142.0,44139.0,0.113292]
[1641416585956,0.028961,44142.0,44139.0,0.113292]
[1641416586152,0.028961,44142.0,44137.0,0.056649]
[1641416586552,0.028961,44142.0,44139.0,0.001]
[1641416587199,0.48555332,44143.0,44139.0,0.001]
[1641416587402,0.02896,44142.0,44139.0,0.001]
[1641416587602,6.70722489,44153.0,44139.0,0.001]
[1641416587802,0.02896,44152.0,44138.0,0.25912767]
[1641416588002,0.02896,44152.0,44141.0,0.056644]
[1641416588608,0.30055905,44147.0,44141.0,0.001]
[1641416588806,0.02896,44146.0,44141.0,0.001]
[1641416589009,0.33061196,44140.0,44119.0,0.1]
[1641416589207,0.1,44135.0,44122.0,0.00126099]
[1641416589406,0.1,44135.0,44103.0,0.0535191]
[1641416589407,0.00122407,44124.0,44103.0,0.0535191]
[1641416589606,0.056679,44121.0,44110.0,0.056679]
[1641416590007,0.056679,44121.0,44113.0,0.29436023]
[1641416590308,0.00127992,44119.0,44108.0,0.39133093]
[1641416590558,0.00127992,44119.0,44113.0,0.002]
[1641416591546,0.25652335,44121.0,44113.0,0.002]
[1641416591748,0.056681,44117.0,44109.0,0.30236401]
[1641416592247,0.25729284,44124.0,44111.0,0.056679]
[1641416592446,0.25729284,44124.0,44109.0,0.30236401]
[1641416592647,0.056677,44120.0,44109.0,0.30436401]
[1641416592948,0.62624095,44130.0,44109.0,0.30436401]
[1641416592949,0.1,44134.0,44116.0,0.37080202]
[1641416593148,0.23764074,44136.0,44118.0,0.00123418]
[1641416593350,0.23764074,44136.0,44122.0,0.056664]
[1641416593351,0.02896,44135.0,44122.0,0.056664]
[1641416593751,0.056661,44133.0,44122.0,0.056664]
[1641416593948,0.056661,44133.0,44130.0,0.49960565]
[1641416594146,0.056661,44133.0,44130.0,0.91769507]
[1641416594601,0.061661,44133.0,44130.0,0.91869507]
[1641416594805,0.005,44133.0,44130.0,0.91869507]
[1641416595002,0.005,44133.0,44131.0,0.368063]
[1641416595901,0.33061196,44140.0,44131.0,0.368063]
[1641416595902,0.00120702,44132.0,44131.0,0.368063]
[1641416596504,0.00120702,44132.0,44131.0,0.369063]
[1641416597304,0.00020702,44132.0,44131.0,0.369063]
[1641416597503,0.00020702,44132.0,44131.0,0.001]
[1641416598355,0.00020702,44132.0,44130.0,0.91769507]
[1641416598553,0.00020702,44132.0,44131.0,0.370063]
[1641416599954,0.00020702,44132.0,44131.0,0.368063]
[1641416600559,0.00020702,44132.0,44131.0,0.370063]
[1641416601658,7.02e-06,44132.0,44131.0,0.420063]
[1641416601909,7.02e-06,44132.0,44131.0,0.638303]
[1641416602707,0.33061196,44140.0,44131.0,1.835303]
[1641416602908,0.33061196,44140.0,44139.0,1.54130175]
[1641416603107,0.33061196,44140.0,44139.0,1.95936475]
[1641416603508,0.33061196,44140.0,44139.0,2.01058294]
[1641416603708,0.33061196,44140.0,44139.0,2.11058294]
[1641416604208,0.33061196,44140.0,44139.0,2.16721894]
[1641416604408,0.33061196,44140.0,44139.0,1.53721894]
[1641416604608,0.33061196,44140.0,44139.0,1.53921894]
[1641416605566,0.33061196,44140.0,44139.0,1.52707543]
[1641416605754,0.33061196,44140.0,44139.0,1.5262786]
[1641416606355,0.33061196,44140.0,44139.0,1.25886307]
[1641416606560,1.11061196,44140.0,44139.0,0.37126617]
[1641416606760,1.11061196,44140.0,44134.0,0.16994383]
[1641416606961,1.11061196,44140.0,44133.0,0.01362379]
[1641416606962,0.00120128,44136.0,44133.0,0.01362379]
[1641416607164,0.02896,44135.0,44133.0,0.01362379]
[1641416607359,2.29,44134.0,44133.0,0.01362379]
[1641416607557,2.31896,44134.0,44133.0,0.01362379]
[1641416608356,2.31896,44134.0,44128.0,0.05665565]
[1641416608557,2.29,44134.0,44133.0,0.003]
[1641416609410,1.11061196,44140.0,44135.0,0.05665]
[1641416609609,1.11061196,44140.0,44133.0,0.003]
[1641416609809,1.11061196,44140.0,44132.0,0.056647]
[1641416610010,1.11061196,44140.0,44131.0,0.59566156]
[1641416610410,1.11061196,44140.0,44128.0,0.40787552]
[1641416610610,1.11061196,44140.0,44134.0,0.113296]
[1641416610811,0.02896,44139.0,44134.0,0.113296]
[1641416611009,1.11061196,44140.0,44134.0,0.113296]
[1641416611409,0.02868733,44139.0,44134.0,0.113296]
[1641416611610,0.25269929,44139.0,44134.0,0.113296]
[1641416611816,1.11061196,44140.0,44134.0,0.169948]
[1641416612012,1.11061196,44140.0,44134.0,0.113296]
[1641416612211,0.028682,44139.0,44134.0,0.108296]
[1641416612413,0.33061196,44140.0,44138.0,0.50409098]
[1641416612716,0.33061196,44140.0,44138.0,0.81737798]
[1641416612913,0.33061196,44140.0,44139.0,0.368095]
[1641416613355,0.33061196,44140.0,44139.0,0.418095]
[1641416614557,1.13061196,44140.0,44139.0,0.418095]
[1641416614757,1.13061196,44140.0,44139.0,0.055]
[1641416614956,1.13061196,44140.0,44139.0,0.005]
[1641416615161,1.13061196,44140.0,44138.0,0.056648]
[1641416615162,1.15929396,44140.0,44138.0,0.056648]
[1641416615362,1.15929396,44140.0,44128.0,0.113309]
[1641416615363,0.31955354,44139.0,44128.0,0.113309]
[1641416615558,0.0012463,44137.0,44128.0,0.113309]
[1641416615758,0.028682,44136.0,44123.0,0.113319]
[1641416616160,2.54227811,44134.0,44123.0,0.41842517]
[1641416616360,2.54227811,44134.0,44125.0,0.32010174]
[1641416616361,0.46971828,44133.0,44125.0,0.32010174]
[1641416616560,0.028682,44132.0,44128.0,0.05666]
[1641416616814,0.028682,44132.0,44118.0,0.0012947]
[1641416617019,0.028682,44131.0,44116.0,0.056669]
[1641416617314,0.00123627,44126.0,44108.0,0.00124872]
[1641416617712,0.00123627,44126.0,44116.0,0.056674]
[1641416617713,0.27921581,44125.0,44116.0,0.056674]
[1641416618012,0.29088442,44124.0,44117.0,0.056673]
[1641416618212,0.028682,44123.0,44117.0,0.056673]
[1641416618412,0.028682,44123.0,44116.0,0.056674]
[1641416618612,0.028682,44123.0,44117.0,0.003]
[1641416619014,0.27921581,44125.0,44118.0,0.056675]
[1641416619215,0.00123627,44126.0,44118.0,0.056675]
[1641416620116,0.028682,44125.0,44118.0,0.056675]
[1641416620569,0.00123627,44126.0,44118.0,0.106675]
[1641416620760,0.27384878,44129.0,44120.0,0.05667]
[1641416620959,0.070582,44128.0,44120.0,0.05667]
[1641416621264,0.070582,44128.0,44118.0,0.41756253]
[1641416621660,0.127252,44128.0,44119.0,1.28158277]
[1641416621859,0.09857,44128.0,44119.0,1.28158277]
[1641416622062,0.09857,44128.0,44123.0,0.60545167]
[1641416622268,0.0419,44128.0,44123.0,0.60545167]
[1641416622461,0.0419,44128.0,44121.0,0.36618379]
[1641416622660,0.0439,44128.0,44123.0,0.003]
[1641416622862,0.0439,44128.0,44123.0,0.059669]
[1641416622863,0.10057,44128.0,44123.0,0.059669]
[1641416623061,0.0439,44128.0,44123.0,0.059669]
[1641416623263,0.0439,44128.0,44124.0,0.056666]
[1641416623661,0.0439,44128.0,44125.0,0.40384409]
[1641416623864,0.0419,44128.0,44125.0,0.40384409]
[1641416624504,0.0419,44128.0,44125.0,0.92427765]
[1641416624705,0.0439,44128.0,44125.0,0.002]
[1641416624910,0.0439,44128.0,44108.0,0.170015]
[1641416624911,0.2,44125.0,44108.0,0.170015]
[1641416625107,0.00122817,44110.0,44108.0,1.79411576]
[1641416625904,0.00122817,44110.0,44109.0,0.27978368]
[1641416626105,0.0419,44116.0,44109.0,0.27978368]
[1641416626303,0.0419,44116.0,44109.0,0.33646968]
[1641416626704,0.0429,44116.0,44109.0,0.33646968]
[1641416626907,0.001,44116.0,44109.0,0.33646968]
[1641416627106,0.001,44116.0,44110.0,0.368095]
[1641416627305,0.001,44116.0,44111.0,0.056682]
[1641416627510,0.001,44116.0,44113.0,0.056672]
[1641416627705,0.001,44116.0,44114.0,0.368095]
[1641416627905,0.00122869,44127.0,44114.0,0.368095]
[1641416628155,0.00122869,44127.0,44126.0,0.74543795]
[1641416628355,2.34667,44127.0,44126.0,0.42652953]
[1641416628556,2.318682,44127.0,44126.0,0.42652953]
[1641416628754,2.321682,44127.0,44126.0,0.42852953]
[1641416628955,2.321682,44127.0,44126.0,0.002]
[1641416629755,2.37963094,44127.0,44126.0,0.002]
[1641416629953,2.37663094,44127.0,44120.0,0.0136243]
[1641416630159,0.028682,44126.0,44120.0,0.0136243]
[1641416630354,0.22367141,44125.0,44120.0,0.0136243]
[1641416630554,0.028682,44124.0,44120.0,0.0136243]
[1641416630754,0.085358,44124.0,44120.0,0.0166243]
[1641416631357,0.002,44126.0,44120.0,0.0166243]
[1641416631558,0.028682,44125.0,44120.0,0.0166243]
[1641416632108,0.028682,44125.0,44121.0,0.57744993]
[1641416632711,0.030682,44125.0,44121.0,0.58044993]
[1641416633708,0.030682,44125.0,44121.0,0.63712093]
[1641416633908,2.29,44127.0,44121.0,0.63412093]
[1641416634308,2.29,44127.0,44121.0,0.57744993]
[1641416634709,0.002,44127.0,44125.0,0.35973777]
[1641416635951,0.113337,44133.0,44126.0,0.2622986]
[1641416636152,0.113337,44133.0,44125.0,0.35973777]
[1641416636352,0.056668,44129.0,44122.0,0.056668]
[1641416636551,0.056668,44129.0,44121.0,0.57744993]
[1641416636852,0.056668,44129.0,44125.0,0.003]
[1641416637253,0.37528711,44129.0,44125.0,0.003]
[1641416637857,0.056668,44129.0,44125.0,0.003]
[1641416638054,0.056668,44129.0,44124.0,0.39839933]
[1641416638255,0.056668,44129.0,44122.0,0.056672]
[1641416638456,0.056668,44129.0,44121.0,0.57744993]
[1641416638856,0.058668,44129.0,44122.0,0.003]
[1641416639299,0.058668,44129.0,44123.0,0.42607069]
[1641416639702,0.30404183,44129.0,44123.0,0.42607069]
[1641416639899,0.30404183,44129.0,44122.0,0.003]
[1641416640101,0.30204183,44129.0,44121.0,0.57744993]
[1641416640301,0.056668,44129.0,44121.0,0.57744993]
[1641416640799,0.058668,44129.0,44122.0,0.3222284]
[1641416641000,0.058668,44129.0,44124.0,0.056669]
[1641416641701,0.058668,44129.0,44125.0,0.32546423]
[1641416641901,0.056668,44129.0,44125.0,0.32546423]
[1641416642701,0.058668,44129.0,44125.0,0.32846423]
[1641416643170,0.058668,44129.0,44126.0,0.056667]
[1641416643568,0.058668,44129.0,44125.0,0.32846423]
[1641416644368,0.056668,44129.0,44125.0,0.32546423]
[1641416644669,0.0001,44130.0,44126.0,0.64040961]
[1641416644965,0.001,44129.0,44126.0,0.69040961]
[1641416645364,0.001,44129.0,44127.0,0.113308]
[1641416645565,0.001,44129.0,44128.0,0.418095]
[1641416645769,0.001,44129.0,44128.0,0.68711921]
[1641416645966,0.001,44129.0,44128.0,0.63711921]
[1641416646172,0.0001,44130.0,44128.0,0.368095]
[1641416646368,0.0001,44130.0,44127.0,0.113308]
[1641416646570,0.00122073,44129.0,44123.0,0.056671]
[1641416646802,0.00122073,44129.0,44128.0,0.004]
[1641416647002,2.61283446,44129.0,44128.0,0.004]
[1641416647203,2.61283446,44129.0,44110.0,0.05351788]
[1641416647204,0.00122607,44114.0,44110.0,0.05351788]
[1641416647404,0.0453,44113.0,44107.0,0.28386572]
[1641416647608,0.22421606,44112.0,44104.0,1.79412894]
[1641416647807,0.00126387,44109.0,44104.0,1.78032894]
[1641416648004,0.0453,44108.0,44101.0,0.48080877]
[1641416648210,0.25703192,44107.0,44105.0,0.69044]
[1641416648412,0.00124719,44103.0,44101.0,0.42410977]
[1641416648606,0.028682,44101.0,44097.0,0.00022]
[1641416648809,0.028682,44099.0,44097.0,0.00022]
[1641416649004,0.028682,44095.0,44089.0,0.00033]
[1641416649207,2.318682,44093.0,44089.0,0.00033]
[1641416649407,2.29,44091.0,44089.0,0.00033]
[1641416649604,0.073982,44091.0,44089.0,0.00033]
[1641416649809,0.0453,44091.0,44089.0,0.00033]
[1641416650004,1.18,44090.0,44084.0,0.42044]
[1641416650207,0.72,44088.0,44084.0,0.42044]
[1641416650408,1.98,44087.0,44084.0,0.42044]
[1641416650652,1.26,44086.0,44084.0,0.42044]
[1641416651057,0.028682,44086.0,44084.0,0.42044]
[1641416651255,0.001,44088.0,44085.0,0.58477418]
[1641416651457,0.001,44088.0,44085.0,0.6427472]
[1641416651650,0.001,44088.0,44087.0,1.16]
[1641416651851,0.001,44088.0,44087.0,1.528095]
[1641416652050,0.954,44104.0,44087.0,1.758995]
[1641416652254,0.62933362,44097.0,44095.0,0.25516574]
[1641416652653,0.001208,44104.0,44095.0,0.25516574]
[1641416652852,0.001208,44104.0,44095.0,0.55907617]
[1641416652853,0.028682,44103.0,44095.0,0.55907617]
[1641416653051,0.001208,44104.0,44097.0,0.056702]
[1641416653252,0.001208,44104.0,44095.0,0.55907617]
[1641416653659,0.001208,44104.0,44095.0,0.97907617]
[1641416653856,0.001208,44104.0,44097.0,0.056703]
[1641416654054,0.001208,44104.0,44098.0,0.62095496]
[1641416654311,0.001208,44104.0,44099.0,0.106699]
[1641416654507,0.001208,44104.0,44103.0,0.30192576]
[1641416654706,0.001208,44104.0,44103.0,0.67002076]
[1641416655010,0.001208,44104.0,44103.0,0.72002076]
[1641416655207,0.001208,44104.0,44103.0,0.82002076]
[1641416656215,0.3112,44126.0,44103.0,0.82002076]
[1641416656216,0.00122923,44120.0,44103.0,0.82002076]
[1641416656411,0.00122923,44120.0,44109.0,0.11335539]
[1641416656612,0.01362515,44114.0,44110.0,0.05]
[1641416656911,0.01362515,44114.0,44112.0,0.32631078]
[1641416657211,0.01362515,44114.0,44113.0,0.368095]
[1641416657612,0.01362515,44114.0,44113.0,0.518095]
[1641416658257,0.27377833,44124.0,44113.0,0.518095]
[1641416658457,0.27377833,44124.0,44118.0,0.64181328]
[1641416658658,0.21710233,44124.0,44112.0,0.113353]
[1641416658865,0.21710233,44124.0,44113.0,0.002]
[1641416658866,0.00123842,44120.0,44113.0,0.002]
[1641416659057,0.028682,44119.0,44113.0,0.002]
[1641416659258,0.00129242,44114.0,44113.0,0.002]
[1641416659457,2.31997442,44114.0,44113.0,0.002]
[1641416660058,2.31997442,44114.0,44108.0,0.59029569]
[1641416660459,0.00129242,44114.0,44108.0,0.59029569]
[1641416660659,0.00120884,44122.0,44115.0,0.056679]
[1641416661462,0.32953255,44122.0,44115.0,0.056679]
[1641416661805,0.32953255,44122.0,44116.0,0.113356]
[1641416662209,0.53452112,44122.0,44111.0,0.226716]
[1641416662407,0.63452112,44122.0,44111.0,0.113358]
[1641416662607,0.05668562,44120.0,44111.0,0.113358]
[1641416662808,0.54452112,44122.0,44111.0,0.115358]
[1641416663008,0.20303821,44121.0,44111.0,0.115358]
[1641416663408,0.20238081,44121.0,44111.0,0.115358]
[1641416663608,0.33953255,44122.0,44111.0,0.115358]
[1641416664012,0.32953255,44122.0,44111.0,0.113358]
[1641416664209,0.00120884,44122.0,44114.0,0.056681]
[1641416664809,0.01220884,44122.0,44114.0,0.058681]
[1641416665410,0.01220884,44122.0,44116.0,0.056678]
[1641416665653,0.056683,44119.0,44114.0,0.002]
[1641416665852,0.01220884,44122.0,44114.0,0.002]
[1641416666052,0.00120884,44122.0,44111.0,0.113358]
[1641416666252,0.00120884,44122.0,44109.0,0.30172944]
[1641416666451,0.05668559,44120.0,44109.0,0.30172944]
[1641416666656,0.056687,44116.0,44107.0,0.113369]
[1641416666852,0.056687,44116.0,44109.0,0.003]
[1641416667452,0.20228169,44117.0,44109.0,0.003]
[1641416667453,0.6110935,44111.0,44109.0,0.003]
[1641416667657,2.86900237,44110.0,44109.0,0.003]
[1641416667852,2.29,44109.0,44096.0,2.18384403]
[1641416668053,0.028682,44108.0,44096.0,1.95026735]
[1641416668251,0.21515391,44107.0,44096.0,2.23022531]
[1641416668455,0.00122019,44103.0,44096.0,1.79457275]
[1641416668653,0.00122019,44103.0,44096.0,2.3053732]
[1641416668853,0.00122019,44103.0,44096.0,2.3083732]
[1641416669053,0.00122019,44103.0,44100.0,0.26626613]
[1641416669310,0.00122019,44103.0,44097.0,1.33875029]
[1641416669606,0.00122019,44103.0,44096.0,0.51380045]
[1641416669804,0.028682,44102.0,44096.0,0.51380045]
[1641416670006,0.00122019,44103.0,44095.0,0.42]
[1641416670007,0.21194674,44103.0,44095.0,0.42]
[1641416670205,0.028682,44102.0,44095.0,0.42]
[1641416670404,0.21194674,44103.0,44096.0,0.32841032]
[1641416670805,0.001,44102.0,44096.0,0.32841032]
[1641416671008,0.001,44102.0,44099.0,0.54204575]
[1641416671609,0.101,44102.0,44100.0,1.28209009]
[1641416672206,0.1,44102.0,44100.0,1.28209009]
[1641416672807,0.103,44102.0,44100.0,1.28509009]
[1641416673855,2.29121693,44101.0,44095.0,0.42]
[1641416674058,0.028682,44097.0,44095.0,0.42]
[1641416674253,2.31997898,44096.0,44084.0,0.39835]
[1641416674458,0.21488464,44095.0,44084.0,0.39835]
[1641416674653,0.00128224,44086.0,44084.0,0.39835]
[1641416674852,0.00128224,44086.0,44084.0,0.40235]
[1641416675257,0.113449,44092.0,44084.0,0.40235]
[1641416675453,0.00122066,44089.0,44084.0,0.40235]
[1641416675855,0.00122066,44089.0,44088.0,0.23592329]
[1641416676053,0.05666066,44090.0,44088.0,0.23592329]
[1641416676252,0.768682,44089.0,44088.0,0.23592329]
[1641416676914,2.320682,44089.0,44088.0,0.22892329]
[1641416677116,0.770682,44089.0,44088.0,0.22892329]
[1641416677514,0.9741496,44089.0,44088.0,0.22892329]
[1641416677712,0.030682,44089.0,44088.0,0.22892329]
[1641416677913,0.002,44089.0,44088.0,0.27892329]
[1641416678117,0.002,44089.0,44088.0,0.64701829]
[1641416678814,0.002,44089.0,44088.0,1.81201829]
[1641416679012,0.002,44089.0,44088.0,0.65201829]
[1641416679412,0.002,44089.0,44088.0,1.07201829]